bitfinex-derivatives/quotes_ETHF0:USTF0_20250626
["timestamp","ask_amount","ask_price","bid_price","bid_amount"]
[1750981847408,1.50741,2414.1,2414.0,31.799]
[1750981847710,0.6793,2414.1,2414.0,31.799]
[1750981848014,1.50741,2414.1,2414.0,31.799]
[1750981849014,1.50741,2414.1,2414.0,6.533]
[1750981849316,1.50741,2414.1,2414.0,31.799]
[1750981849701,1.50741,2414.1,2414.0,6.533]
[1750981849702,2.91301,2414.1,2414.0,6.533]
[1750981849907,2.0849,2414.1,2413.9,31.799]
[1750981850109,3.54474223,2414.0,2413.9,6.533]
[1750981850309,5.92439223,2414.0,2413.5,1.64894752]
[1750981850509,5.92439223,2414.0,2413.3,34.16154752]
[1750981850510,0.82834,2413.5,2413.3,34.16154752]
[1750981850912,1.54074,2413.5,2413.3,34.16154752]
[1750981851116,0.7124,2413.5,2413.3,34.98991752]
[1750981851318,0.82825,2413.7,2413.3,36.34261752]
[1750981851618,1.54065,2413.7,2413.3,36.34261752]
[1750981851814,0.7124,2413.7,2413.5,5.92439223]
[1750981852116,0.82817,2414.0,2413.6,33.45194752]
[1750981852317,4.83459223,2414.2,2413.6,34.70697]
[1750981852615,4.83459223,2414.2,2413.7,2.1448]
[1750981852815,0.82818,2414.0,2413.8,25.288]
[1750981853216,0.82813,2414.1,2413.8,26.11619]
[1750981853405,0.82813,2414.1,2413.8,27.58399]
[1750981853817,0.82813,2414.1,2413.9,1.4678]
[1750981854519,1.54049,2414.2,2413.9,2.29597]
[1750981854718,1.54049,2414.2,2413.9,8.82997]
[1750981855720,1.54049,2414.2,2413.9,8.0018]
[1750981855918,1.54049,2414.2,2413.9,8.82998]
[1750981856123,0.7124,2414.2,2414.0,0.82812]
[1750981856329,0.7124,2414.2,2414.0,1.4458]
[1750981856620,0.7124,2414.2,2414.1,0.7186]
[1750981857825,1.54521,2414.4,2414.1,4.7545]
[1750981858125,1.54521,2414.4,2414.1,6.2003]
[1750981858325,1.54521,2414.4,2414.1,5.3722]
[1750981858726,0.82805,2414.3,2414.1,5.3722]
[1750981858923,0.7172,2414.4,2414.2,0.82807]
[1750981859124,1.5472,2414.5,2414.2,0.82807]
[1750981859320,1.5472,2414.5,2414.2,2.93747]
[1750981859526,0.82802,2414.4,2414.2,8.6434]
[1750981860024,0.82804,2414.3,2414.2,8.6434]
[1750981861529,0.7192,2414.5,2414.2,8.6434]
[1750981861530,0.82803,2414.4,2414.2,8.6434]
[1750981861830,0.82804,2414.3,2414.2,8.6434]
[1750981862234,0.82802,2414.4,2414.2,8.6434]
[1750981862424,0.82804,2414.3,2414.2,8.6434]
[1750981862625,0.82802,2414.4,2414.2,8.6434]
[1750981863929,0.82804,2414.3,2414.2,8.6434]
[1750981865133,0.82804,2414.3,2414.2,6.534]
[1750981865432,0.82818,2413.9,2413.8,0.6905]
[1750981865735,3.54477223,2413.9,2413.8,7.2155]
[1750981865933,3.54477223,2413.9,2413.8,6.525]
[1750981866134,4.25487223,2413.9,2413.8,6.525]
[1750981867230,0.82817,2414.0,2413.8,6.525]
[1750981867633,0.82817,2414.0,2413.8,7.9076]
[1750981867939,1.53823,2414.1,2413.8,7.9076]
[1750981868140,1.53823,2414.1,2413.9,1.3826]
[1750981868438,0.82815,2414.0,2413.9,1.3826]
[1750981868739,1.53823,2414.1,2414.0,0.7309]
[1750981869039,2.49406158,2414.1,2414.0,0.7309]
[1750981874838,1.66593158,2414.1,2414.0,0.7309]
[1750981875141,0.95583158,2414.1,2414.0,0.7309]
[1750981875534,0.95583158,2414.1,2414.0,4.76685]
[1750981875730,0.95583158,2414.1,2414.0,6.0097]
[1750981876538,1.78394158,2414.1,2414.0,0.7309]
[1750981876741,1.78394158,2414.1,2413.4,5.68253001]
[1750981876742,11.88022381,2414.1,2413.4,5.68253001]
[1750981877042,3.54484223,2413.7,2413.6,6.526]
[1750981877242,1.78408158,2413.7,2413.6,6.526]
[1750981878349,0.95583158,2413.7,2413.6,6.526]
[1750981878647,0.95583158,2413.7,2413.6,7.35428]
[1750981878841,0.95583158,2413.7,2413.6,9.42978]
[1750981879043,1.78405158,2413.8,2413.6,8.6015]
[1750981879247,0.95583158,2413.7,2413.6,8.6015]
[1750981879435,0.95583158,2413.7,2413.6,0.6935]
[1750981879641,0.95583158,2413.7,2413.6,7.2195]
[1750981879942,1.78408158,2413.7,2413.6,7.2195]
[1750981880747,1.78408158,2413.7,2413.6,6.526]
[1750981881846,0.95583158,2413.7,2413.6,6.526]
[1750981882046,0.95583158,2413.7,2413.6,7.35428]
[1750981882438,0.95583158,2413.8,2413.6,7.35428]
[1750981883248,0.95583158,2413.8,2413.7,0.7081]
[1750981884048,0.82831,2413.6,2413.4,28.4968]
[1750981884248,1.64893158,2413.5,2413.4,28.4968]
[1750981884436,5.19384381,2413.5,2413.4,3.2078]
[1750981884747,0.82838,2413.4,2413.3,6.526]
[1750981885045,1.78421158,2413.4,2413.3,6.526]
[1750981886645,0.95583158,2413.4,2413.3,6.526]
[1750981886847,0.95583158,2413.4,2413.3,7.35439]
[1750981887045,0.95583158,2413.4,2413.3,10.07098223]
[1750981887242,0.6931,2413.7,2413.4,0.82833]
[1750981887441,0.95685825,2413.6,2413.4,4.03613]
[1750981887641,0.95685825,2413.5,2413.4,5.41543]
[1750981890652,0.95685825,2413.5,2413.4,6.12603]
[1750981890849,0.6931,2413.7,2413.6,0.82828]
[1750981891144,1.64983812,2413.7,2413.6,0.82828]
[1750981891348,1.78498812,2413.7,2413.6,6.527]
[1750981891743,0.95673812,2413.7,2413.6,6.527]
[1750981892050,0.95673812,2413.7,2413.6,7.35528]
[1750981892451,0.9569968,2413.7,2413.6,7.35528]
[1750981892653,0.9569968,2413.7,2413.6,8.588]
[1750981893151,0.9569968,2413.7,2413.6,9.41628]
[1750981894246,0.9569968,2413.7,2413.6,8.588]
[1750981895246,0.9569968,2413.7,2413.6,9.41628]
[1750981897949,2.47902954,2414.2,2414.0,0.82813]
[1750981898148,3.18222954,2414.2,2413.9,6.548]
[1750981898352,0.82813,2414.1,2413.9,6.548]
[1750981899251,0.82815,2414.0,2413.9,6.548]
[1750981899656,0.82812,2414.1,2413.9,6.548]
[1750981900557,5.58118223,2414.2,2413.9,7.37616]
[1750981900758,1.53129,2414.2,2413.9,7.37616]
[1750981900951,1.53129,2414.2,2414.0,0.6953]
[1750981903260,0.7032,2414.2,2414.0,1.52344]
[1750981903551,1.53129,2414.2,2414.0,0.6953]
[1750981903858,0.82811,2414.1,2414.0,0.6953]
[1750981904359,1.5313,2414.2,2414.0,0.6953]
[1750981904554,0.7032,2414.2,2414.0,1.52344]
[1750981906272,2.47902954,2414.4,2414.0,3.9031]
[1750981906476,4.02102954,2414.5,2414.2,0.82808]
[1750981906770,3.19302954,2414.5,2414.3,0.82803]
[1750981907279,3.19302954,2414.5,2414.4,0.7347]
[1750981907467,0.714,2414.5,2414.4,0.7347]
[1750981907770,1.54198,2414.5,2414.4,0.7347]
[1750981908380,0.714,2414.5,2414.4,0.7347]
[1750981908673,3.18872954,2414.8,2414.4,0.7347]
[1750981908871,3.91872954,2414.8,2414.5,6.548]
[1750981909066,3.91872954,2414.8,2414.5,9.26459223]
[1750981909261,3.20902954,2414.8,2414.6,3.2078]
[1750981909463,2.47902954,2414.8,2414.6,4.5762]
[1750981909669,3.30691954,2414.8,2414.6,4.5762]
[1750981909873,2.47902954,2414.8,2414.6,4.5762]
[1750981910073,0.82786,2414.9,2414.6,4.5762]
[1750981910280,0.82786,2414.9,2414.6,5.40414]
[1750981910668,0.82789,2414.8,2414.6,3.2078]
[1750981912475,0.82787,2414.8,2414.6,3.2078]
[1750981913375,0.82787,2414.8,2414.5,38.57934223]
[1750981914277,0.82785,2414.9,2414.6,0.82794]
[1750981914575,2.1928,2415.0,2414.5,39.21899223]
[1750981914780,0.73,2415.0,2414.8,3.2078]
[1750981914978,0.73,2415.0,2414.8,9.7548]
[1750981915279,1.55781,2415.0,2414.8,9.7548]
[1750981915780,0.82784,2414.9,2414.8,10.4478]
[1750981916976,0.82784,2414.9,2414.8,7.24]
[1750981917281,0.82784,2414.9,2414.8,10.4478]
[1750981919478,1.55783,2415.0,2414.8,10.4478]
[1750981920285,0.82784,2414.9,2414.8,10.4478]
[1750981921887,3.54443223,2414.9,2414.8,9.7548]
[1750981922074,0.82794,2414.6,2414.5,3.9154]
[1750981922387,0.82794,2414.6,2414.5,9.7538]
[1750981922687,0.82794,2414.6,2414.5,6.546]
[1750981922993,3.64724,2414.6,2414.5,6.546]
[1750981924387,2.8193,2414.6,2414.5,6.546]
[1750981924590,2.18714,2414.6,2414.5,6.546]
[1750981925489,0.82799,2414.5,2414.3,6.525]
[1750981925892,3.58256,2414.6,2414.3,7.35304]
[1750981926995,0.82798,2414.5,2414.3,6.525]
[1750981927291,3.58256,2414.6,2414.3,7.35304]
[1750981928596,2.18716,2414.6,2414.3,7.35304]
[1750981931598,2.71659223,2414.5,2414.2,0.6794]
[1750981931799,3.2078,2414.4,2414.1,6.525]
[1750981932096,0.82806,2414.3,2414.1,6.525]
[1750981932488,0.82808,2414.2,2414.1,6.525]
[1750981932885,0.82807,2414.3,2414.1,6.525]
[1750981933597,3.2078,2414.4,2414.1,6.525]
[1750981933795,3.2078,2414.4,2414.2,0.82807]
[1750981934195,3.2078,2414.4,2414.3,0.7162]
[1750981934597,4.03581,2414.4,2414.3,0.7162]
[1750981936492,0.82807,2414.3,2414.1,6.525]
[1750981936800,0.82807,2414.3,2414.1,7.2124]
[1750981938598,5.25722954,2414.6,2414.1,7.2124]
[1750981938900,0.828,2414.5,2414.2,0.82806]
[1750981939097,0.828,2414.5,2414.1,15.41288223]
[1750981939303,0.828,2414.5,2414.2,1.448]
[1750981939502,3.83822954,2414.6,2414.2,1.448]
[1750981939503,0.82801,2414.4,2414.2,1.448]
[1750981941000,0.828,2414.5,2414.2,1.448]
[1750981941207,1.3592,2414.6,2414.3,3.54462223]
[1750981941208,1.50806,2414.6,2414.3,3.54462223]
[1750981941501,0.82796,2414.6,2414.4,1.4299]
[1750981941892,0.82796,2414.6,2414.5,0.6683]
[1750981945305,0.82793,2414.7,2414.5,0.6683]
[1750981945510,4.74349,2414.8,2414.5,4.21285223]
[1750981945809,4.74349,2414.8,2414.6,1.4027]
[1750981947501,0.82791,2414.7,2414.6,1.4027]
[1750981947701,2.71659223,2414.7,2414.3,0.7012]
[1750981947907,0.82798,2414.5,2414.4,6.525]
[1750981948209,0.82798,2414.5,2414.2,6.525]
[1750981948210,0.82804,2414.3,2414.2,6.525]
[1750981948412,3.54463223,2414.3,2414.2,6.525]
[1750981948803,4.99043223,2414.3,2414.2,6.525]
[1750981950405,0.82804,2414.3,2414.2,6.525]
[1750981951605,9.78672223,2414.3,2413.7,51.36131715]
[1750981951807,3.54481223,2413.8,2413.7,6.525]
[1750981952208,0.82822,2413.8,2413.7,6.525]
[1750981952404,0.82828,2413.6,2413.5,8.17431715]
[1750981952609,1.3666,2413.9,2413.5,9.00261715]
[1750981952805,1.50798,2413.9,2413.6,2.71659223]
[1750981953006,1.50798,2413.9,2413.6,4.04919223]
[1750981953404,0.82818,2413.9,2413.6,4.87747223]
[1750981953911,0.82816,2414.0,2413.7,3.942]
[1750981954314,0.82816,2414.0,2413.8,6.524]
[1750981954513,1.3635,2414.2,2413.8,9.24059223]
[1750981954707,2.47902954,2414.3,2413.8,9.24059223]
[1750981954708,0.82811,2414.1,2414.0,2.71659223]
[1750981954912,0.82811,2414.1,2413.9,0.6719]
[1750981955414,1.53446,2414.3,2413.9,1.50008]
[1750981955712,1.53446,2414.3,2414.0,2.16074]
[1750981955907,0.7064,2414.3,2414.0,7.25699223]
[1750981956102,1.53448,2414.3,2414.0,7.25699223]
[1750981956607,0.82808,2414.2,2414.0,7.25699223]
[1750981957608,1.53445,2414.3,2414.0,8.08513223]
[1750981957811,1.53445,2414.3,2414.1,1.4502]
[1750981958004,0.7064,2414.3,2414.0,3.2078]
[1750981958413,0.82811,2414.1,2414.0,3.2078]
[1750981958710,5.92439223,2414.1,2413.7,3.2078]
[1750981959012,0.82815,2414.0,2413.9,6.524]
[1750981959212,2.87665,2414.0,2413.9,6.524]
[1750981959809,2.0485,2414.0,2413.8,6.525]
[1750981960112,0.7325,2413.9,2413.8,6.525]
[1750981960310,1.56068,2413.9,2413.8,6.525]
[1750981960714,5.61197223,2413.9,2413.8,6.525]
[1750981963813,2.89538,2413.9,2413.8,6.525]
[1750981964216,1.56068,2413.9,2413.8,6.525]
[1750981972239,0.82822,2413.8,2413.6,3.8747]
[1750981972441,0.82822,2413.8,2413.7,7.8675]
[1750981973336,0.82825,2413.7,2413.6,0.6669]
[1750981973542,0.82832,2413.5,2413.4,6.525]
[1750981974244,1.53642,2413.5,2413.4,6.525]
[1750981974629,0.82831,2413.6,2413.4,6.525]
[1750981975137,0.82831,2413.6,2413.5,0.6839]
[1750981979038,0.82827,2413.7,2413.5,3.8917]
[1750981979239,0.82828,2413.6,2413.5,5.2752]
[1750981981148,0.82825,2413.7,2413.5,5.2752]
[1750981981345,0.82825,2413.7,2413.6,1.441]
[1750981981848,0.82824,2413.8,2413.6,2.26928]
[1750981982049,0.82824,2413.8,2413.7,1.441]
[1750981982444,3.15132954,2414.2,2413.7,7.965]
[1750981982651,3.15132954,2414.2,2413.8,3.2078]
[1750981982652,0.82816,2414.0,2413.8,3.2078]
[1750981982845,0.82816,2414.0,2413.9,1.441]
[1750981983043,0.82816,2414.0,2413.9,2.1515]
[1750981983954,0.82816,2414.0,2413.9,0.7105]
[1750981984250,0.82822,2413.8,2413.7,6.524]
[1750981985051,0.82825,2413.7,2413.6,0.7105]
[1750981985254,3.54484223,2413.7,2413.6,6.524]
[1750981985649,6.75264223,2413.7,2413.6,6.524]
[1750981985854,8.11494223,2413.7,2413.6,6.524]
[1750981986153,4.90714223,2413.7,2413.6,6.524]
[1750981986555,3.54484223,2413.7,2413.6,6.524]
[1750981988351,0.6967,2413.8,2413.5,8.17331715]
[1750981988557,3.2078,2414.0,2413.7,3.2078]
[1750981988558,0.82816,2414.0,2413.7,3.2078]
[1750981988759,0.82816,2414.0,2413.8,0.6996]
[1750981988960,0.82818,2413.9,2413.8,8.6018]
[1750981994867,0.82818,2413.9,2413.8,7.2236]
[1750981995268,1.52528,2413.9,2413.8,7.2236]
[1750981996865,0.82818,2413.9,2413.8,7.2236]
[1750981997371,0.82818,2413.9,2413.8,8.5526]
[1750981997562,0.82816,2414.0,2413.8,8.5526]
[1750981997765,3.20362954,2414.2,2413.8,11.26919223]
[1750981998068,0.82808,2414.2,2414.1,3.2078]
[1750981998266,3.30710954,2414.2,2414.1,9.7318]
[1750981998970,0.82808,2414.2,2414.1,6.524]
[1750981999171,3.30710954,2414.2,2414.1,6.524]
[1750981999764,0.82808,2414.2,2414.1,6.524]
[1750982000871,1.53188,2414.2,2414.1,6.524]
[1750982001959,1.53188,2414.2,2414.1,9.7318]
[1750982003877,0.7038,2414.2,2414.1,9.7318]
[1750982004072,0.82806,2414.3,2414.1,9.7318]
[1750982004268,0.82806,2414.3,2414.2,0.6662]
[1750982004775,0.82808,2414.2,2414.1,9.7318]
[1750982004971,0.7085,2414.2,2414.1,9.7318]
[1750982005171,1.53658,2414.2,2414.1,9.7318]
[1750982007382,4.25317223,2414.2,2414.1,3.2078]
[1750982007871,0.82815,2414.0,2413.9,6.523]
[1750982010076,0.82815,2414.0,2413.8,3.2078]
[1750982010077,0.82818,2413.9,2413.8,3.2078]
[1750982010267,0.82818,2413.9,2413.8,9.7308]
[1750982010473,1.53458,2413.9,2413.8,9.7308]
[1750982014680,0.82818,2413.9,2413.8,9.7308]
[1750982014880,0.82817,2414.0,2413.8,9.7308]
[1750982015283,0.82818,2413.9,2413.8,9.7308]
[1750982016581,0.82817,2414.0,2413.8,9.7308]
[1750982016877,2.71659223,2414.0,2413.5,4.85711715]
[1750982017074,2.71659223,2414.0,2413.4,3.2078]
[1750982017075,2.71659223,2413.8,2413.4,3.2078]
[1750982017274,0.8283,2413.6,2413.4,3.2078]
[1750982017477,0.6881,2413.7,2413.4,3.2078]
[1750982017779,0.82829,2413.6,2413.5,0.735]
[1750982018281,0.82828,2413.6,2413.5,0.735]
[1750982018680,0.82828,2413.6,2413.5,7.255]
[1750982019778,3.18502954,2414.1,2413.6,0.82827]
[1750982019980,0.82819,2413.9,2413.7,3.2078]
[1750982020282,0.82819,2413.9,2413.8,6.521]
[1750982020485,0.82819,2413.9,2413.8,7.2362]
[1750982022286,0.82817,2414.0,2413.8,7.2362]
[1750982022491,0.82818,2413.9,2413.8,7.2362]
[1750982031889,0.706,2414.1,2413.8,7.2362]
[1750982032193,0.7021,2414.2,2414.0,3.2078]
[1750982033395,0.82811,2414.1,2414.0,3.2078]
[1750982036094,0.82815,2414.0,2413.9,4.6275]
[1750982037987,0.82813,2414.1,2413.9,4.6275]
[1750982038394,0.82813,2414.1,2414.0,1.4335]
[1750982041893,2.47902954,2414.3,2414.0,4.97822223]
[1750982042099,3.15082954,2414.4,2414.2,3.2078]
[1750982042296,0.82804,2414.3,2414.2,3.2078]
[1750982042496,2.47902954,2414.4,2414.2,3.2078]
[1750982042702,3.25821442,2414.7,2414.2,3.2078]
[1750982042703,2.47902954,2414.7,2414.3,25.255]
[1750982042904,2.47902954,2414.9,2414.8,0.82787]
[1750982043201,0.45252415,2415.5,2415.0,3.2078]
[1750982043396,16.40903275,2416.0,2415.4,5.92439223]
[1750982043397,5.74316146,2416.0,2415.4,5.92439223]
[1750982043595,4.10225819,2416.2,2415.9,5.92439223]
[1750982043903,8.20451638,2416.8,2415.9,5.92439223]
[1750982043904,4.10225819,2416.3,2416.2,0.82739]
[1750982044198,5.74316146,2416.7,2416.2,6.59439223]
[1750982044504,9.15195369,2417.2,2416.6,5.92439223]
[1750982044805,9.15195369,2417.2,2416.7,6.515]
[1750982044806,10.57225369,2417.2,2416.7,6.515]
[1750982045003,8.68273146,2417.2,2416.9,3.2078]
[1750982045202,2.93957,2417.2,2417.0,6.515]
[1750982045393,0.82708,2417.1,2417.0,6.515]
[1750982045597,2.93957,2417.2,2417.0,6.515]
[1750982046099,2.93957,2417.2,2416.9,3.2078]
[1750982046100,0.82712,2417.0,2416.9,3.2078]
[1750982046301,0.82712,2417.0,2416.9,9.7228]
[1750982046701,2.24742,2417.0,2416.9,5.66795]
[1750982046901,0.82726,2416.6,2416.5,3.2078]
[1750982047102,0.82726,2416.6,2416.5,9.7208]
[1750982047400,1.4203,2417.0,2416.5,9.7208]
[1750982047599,0.82726,2416.6,2416.5,9.7208]
[1750982048901,3.2078,2416.9,2416.4,6.513]
[1750982049107,0.82736,2416.3,2416.2,3.2078]
[1750982049307,0.82736,2416.3,2416.2,9.7208]
[1750982051810,0.82736,2416.3,2416.2,3.2078]
[1750982052009,0.82736,2416.3,2416.2,9.7198]
[1750982053204,0.82734,2416.4,2416.2,9.7198]
[1750982053511,0.82728,2416.6,2416.2,9.7198]
[1750982053814,0.82728,2416.6,2416.3,1.3841]
[1750982054005,3.2078,2416.9,2416.3,1.3841]
[1750982054211,0.82719,2416.8,2416.7,3.2078]
[1750982054404,0.82719,2416.8,2416.7,9.7188]
[1750982055206,0.82719,2416.8,2416.7,6.511]
[1750982055407,0.82729,2416.5,2416.4,28.4998]
[1750982055614,0.82729,2416.5,2416.4,3.2078]
[1750982056009,0.82729,2416.5,2416.4,9.7188]
[1750982056411,0.82729,2416.5,2416.4,3.2078]
[1750982056606,0.82729,2416.5,2416.4,9.7178]
[1750982056807,0.82729,2416.5,2416.4,3.2078]
[1750982057015,0.82729,2416.5,2416.4,9.7178]
[1750982058816,0.82729,2416.5,2416.4,3.2078]
[1750982059016,0.82743,2416.1,2416.0,52.9188]
[1750982059207,0.82743,2416.1,2416.0,84.7188]
[1750982059409,2.74612,2416.6,2416.0,84.7188]
[1750982059410,0.8274,2416.2,2416.0,84.7188]
[1750982060012,0.82738,2416.3,2416.0,84.7188]
[1750982060412,0.8274,2416.2,2416.0,84.7188]
[1750982060613,0.82743,2416.1,2416.0,86.0733]
[1750982060812,0.82743,2416.1,2416.0,52.9188]
[1750982061014,0.82743,2416.1,2416.0,84.7188]
[1750982061717,2.0978,2416.5,2416.0,84.7188]
[1750982061912,0.82738,2416.3,2416.0,85.54626]
[1750982062217,0.82738,2416.3,2416.2,3.2078]
[1750982063423,1.50931,2416.5,2416.2,3.2078]
[1750982063620,0.682,2416.5,2416.3,7.33736]
[1750982063823,0.8272,2416.8,2416.4,0.82732]
[1750982064014,0.82717,2416.9,2416.6,3.2078]
[1750982064215,0.82719,2416.8,2416.7,6.51]
[1750982064415,0.7015,2417.0,2416.7,6.51]
[1750982064416,0.82717,2416.9,2416.7,6.51]
[1750982065416,1.52864,2417.0,2416.7,6.51]
[1750982065929,0.82716,2416.9,2416.7,6.51]
[1750982066225,0.82717,2416.9,2416.7,6.51]
[1750982068932,1.52863,2417.0,2416.7,6.51]
[1750982069428,0.82716,2416.9,2416.7,6.51]
[1750982069924,1.52864,2417.0,2416.7,6.51]
[1750982070525,1.52864,2417.0,2416.9,3.2078]
[1750982070727,0.82709,2417.1,2416.9,3.2078]
[1750982071234,0.82709,2417.1,2417.0,6.509]
[1750982076827,2.17989,2417.1,2417.0,6.509]
[1750982077029,0.82709,2417.1,2417.0,6.509]
[1750982079030,3.53850003,2417.1,2417.0,6.509]
[1750982079222,4.21550003,2417.1,2417.0,6.509]
[1750982079934,1.50409,2417.1,2417.0,6.509]
[1750982080228,0.6838,2417.4,2417.0,6.509]
[1750982080430,0.82703,2417.3,2417.2,3.2078]
[1750982081538,1.5108,2417.4,2417.2,3.2078]
[1750982081832,0.82696,2417.5,2417.3,6.539]
[1750982082028,0.82698,2417.4,2417.3,6.539]
[1750982083035,4.53471489,2417.7,2417.3,6.539]
[1750982083235,0.7261,2417.7,2417.3,7.8861]
[1750982083537,0.7261,2417.7,2417.3,6.539]
[1750982083538,0.82698,2417.4,2417.3,6.539]
[1750982086037,0.82702,2417.3,2417.2,3.9046]
[1750982086240,0.82702,2417.3,2417.2,10.4426]
[1750982088140,0.82702,2417.3,2417.2,3.9046]
[1750982088342,0.82702,2417.3,2417.2,10.4426]
[1750982090137,0.82702,2417.3,2417.2,3.2078]
[1750982090335,0.82702,2417.3,2417.2,6.538]
[1750982090645,0.82712,2417.0,2416.9,3.2078]
[1750982090848,0.82712,2417.0,2416.9,9.7458]
[1750982092545,2.22032,2417.0,2416.9,9.7458]
[1750982093343,0.82722,2416.7,2416.6,1.23112103]
[1750982093555,0.82722,2416.7,2416.6,6.538]
[1750982094150,1.3932,2417.0,2416.6,8.18731715]
[1750982094458,3.2078,2417.1,2416.8,1.23170089]
[1750982094459,0.82717,2416.9,2416.8,1.23170089]
[1750982095254,0.82714,2417.0,2416.8,1.23170089]
[1750982095454,1.4377,2417.2,2416.9,7.77070089]
[1750982095654,1.55117,2417.2,2416.9,7.77070089]
[1750982095854,1.55117,2417.2,2417.0,1.4656]
[1750982096159,1.55117,2417.2,2417.0,2.69730089]
[1750982096456,0.82707,2417.2,2417.0,2.69730089]
[1750982097658,0.82708,2417.1,2417.0,2.69730089]
[1750982097849,0.82707,2417.2,2417.0,2.69730089]
[1750982098356,0.82708,2417.1,2417.0,2.69730089]
[1750982098557,0.82708,2417.1,2417.0,1.4656]
[1750982099349,0.82707,2417.2,2417.0,1.4656]
[1750982099959,0.82704,2417.3,2417.0,4.17701003]
[1750982100552,0.82704,2417.3,2417.0,2.2927]
[1750982101263,0.82703,2417.3,2417.0,2.29272]
[1750982101861,0.82703,2417.3,2417.0,2.69730089]
[1750982102251,1.4352,2417.5,2417.1,6.538]
[1750982102457,0.82707,2417.2,2417.1,6.538]
[1750982104953,0.82708,2417.1,2417.0,1.23170089]
[1750982105160,2.20158,2417.1,2417.0,6.538]
[1750982106062,0.82715,2416.9,2416.8,4.43950089]
[1750982106259,0.82715,2416.9,2416.8,7.75970089]
[1750982106657,1.53435,2416.9,2416.8,6.528]
[1750982107663,0.82719,2416.8,2416.7,1.23170089]
[1750982107860,0.82719,2416.8,2416.7,7.75970089]
[1750982108965,0.82719,2416.8,2416.7,6.528]
[1750982109258,0.82719,2416.8,2416.7,7.76015749]
[1750982109454,0.82719,2416.8,2416.7,6.528]
[1750982109764,0.82719,2416.8,2416.7,7.76015749]
[1750982110762,0.82719,2416.8,2416.7,6.528]
[1750982111364,0.82722,2416.7,2416.6,1.23215749]
[1750982111666,0.82722,2416.7,2416.6,7.76015749]
[1750982112361,0.82722,2416.7,2416.6,1.23215749]
[1750982112567,0.82722,2416.7,2416.6,6.528]
[1750982119169,0.82721,2416.8,2416.6,6.528]
[1750982119370,0.82721,2416.8,2416.7,1.4428]
[1750982119664,0.82721,2416.8,2416.7,2.1402]
[1750982120169,0.82719,2416.8,2416.7,2.1402]
[1750982121171,0.6666,2417.0,2416.7,2.1402]
[1750982121172,0.82718,2416.9,2416.7,2.1402]
[1750982121565,0.82719,2416.8,2416.7,2.1402]
[1750982125068,0.82719,2416.8,2416.7,0.6974]
[1750982126268,0.82726,2416.6,2416.5,4.43995749]
[1750982126467,0.82726,2416.6,2416.5,9.7368]
[1750982126861,1.50446,2416.6,2416.5,9.7368]
[1750982128970,1.50446,2416.6,2416.5,6.529]
[1750982134475,1.50446,2416.6,2416.5,7.76115749]
[1750982135165,1.50446,2416.6,2416.5,6.529]
[1750982136780,1.50446,2416.6,2416.5,7.76115749]
[1750982139584,1.50446,2416.6,2416.5,1.23215749]
[1750982139778,0.82729,2416.5,2416.4,1.23215749]
[1750982139983,3.53870003,2416.5,2416.4,6.513]
[1750982140184,4.98530003,2416.5,2416.4,6.513]
[1750982140384,0.82732,2416.4,2416.3,7.74515749]
[1750982140586,2.98732,2416.4,2416.3,7.74515749]
[1750982141283,2.98732,2416.4,2416.3,6.513]
[1750982141582,0.82736,2416.3,2416.2,1.23215749]
[1750982141883,0.82743,2416.1,2416.0,1.64287666]
[1750982142282,0.82746,2416.0,2415.9,6.513]
[1750982142787,0.7228,2416.2,2415.9,6.513]
[1750982142788,0.82743,2416.1,2415.9,6.513]
[1750982142989,4.03519,2416.3,2416.0,2.71141003]
[1750982143183,3.2078,2416.3,2416.0,2.71141003]
[1750982143388,0.8274,2416.2,2416.0,4.79551003]
[1750982144283,4.03518,2416.3,2416.1,1.4037]
[1750982144482,0.82739,2416.2,2416.0,0.6804]
[1750982144686,0.82746,2416.0,2415.9,7.2296]
[1750982145191,0.8275,2415.9,2415.8,26.87687666]
[1750982145382,0.8275,2415.9,2415.8,31.748]
[1750982145781,0.8275,2415.9,2415.8,6.514]
[1750982150989,0.8275,2415.9,2415.6,4.74849]
[1750982151193,0.8275,2415.9,2415.8,6.514]
[1750982151487,0.82748,2416.0,2415.8,6.514]
[1750982152191,0.8275,2415.9,2415.8,6.514]
[1750982153790,0.82748,2416.0,2415.8,6.514]
[1750982154002,0.82739,2416.2,2415.9,0.82748]
[1750982154196,0.82743,2416.1,2416.0,0.6962]
[1750982161906,0.8275,2415.9,2415.8,9.7218]
[1750982162098,0.82748,2416.0,2415.8,9.7218]
[1750982162298,0.82748,2416.0,2415.8,4.5645]
[1750982162498,0.82748,2416.0,2415.9,6.515]
[1750982162898,0.82744,2416.1,2415.9,6.515]
[1750982163093,0.82744,2416.1,2415.9,7.9069]
[1750982166409,0.82746,2416.0,2415.9,7.9069]
[1750982167111,0.82746,2416.0,2415.9,6.515]
[1750982167403,0.8275,2415.9,2415.8,3.2078]
[1750982167609,0.8275,2415.9,2415.8,34.9578]
[1750982167909,0.8275,2415.9,2415.8,34.9568]
[1750982169106,0.82753,2415.8,2415.7,1.64287666]
[1750982169305,0.8276,2415.6,2415.5,11.36367666]
[1750982171410,1.52708,2415.7,2415.5,11.36367666]
[1750982171711,0.82753,2415.8,2415.6,2.71141003]
[1750982171913,0.82751,2415.9,2415.7,1.64726159]
[1750982172111,0.82748,2416.0,2415.8,9.7208]